lending/lending_fUSD_20260211
["ID","MTS","AMOUNT","RATE_DAILY","PERIOD"]
[405087673,1770772272026,-500.0,0.00044356,120]
[405087674,1770772272035,-500.0,0.00044356,120]
[405087675,1770772272044,-549.07112609,0.00044356,120]
[405087676,1770772272055,-500.0,0.00044356,120]
[405087677,1770772272064,-500.0,0.00044356,120]
[405087678,1770772272073,-828.95,0.00044356,120]
[405087679,1770772272082,-500.0,0.00044356,120]
[405087680,1770772272091,-828.95,0.00044356,120]
[405087681,1770772272100,-239.26136267,0.00044356,120]
[405087682,1770772272109,-828.95,0.00044356,120]
[405087683,1770772272118,-828.95,0.00044356,120]
[405087684,1770772272128,-828.95,0.00044356,120]
[405087685,1770772272137,-828.95,0.00044356,120]
[405087686,1770772272146,-500.0,0.00044356,120]
[405087687,1770772272158,-828.95,0.00044356,120]
[405087688,1770772272167,-500.0,0.00044356,120]
[405087689,1770772272176,-828.95,0.00044356,120]
[405087690,1770772272186,-500.0,0.00044356,120]
[405087691,1770772272195,-500.0,0.00044356,120]
[405087692,1770772272204,-828.95,0.00044356,120]
[405087693,1770772272213,-500.0,0.00044356,120]
[405087694,1770772272222,-500.0,0.00044356,120]
[405087695,1770772272231,-500.0,0.00044356,120]
[405087696,1770772272241,-828.95,0.00044356,120]
[405087697,1770772272250,-500.0,0.00044356,120]
[405087698,1770772272260,-500.0,0.00044356,120]
[405087699,1770772272270,-828.95,0.00044356,120]
[405087700,1770772272280,-500.0,0.00044356,120]
[405087701,1770772272289,-510.80600547,0.00044356,120]
[405087702,1770772272299,-500.0,0.00044356,120]
[405087703,1770772272308,-500.0,0.00044356,120]
[405087704,1770772272318,-828.95,0.00044356,120]
[405087705,1770772272327,-500.0,0.00044356,120]
[405087706,1770772272336,-500.0,0.00044356,120]
[405087707,1770772272346,-828.95,0.00044356,120]
[405087708,1770772272358,-534.35427742,0.00044356,120]
[405087709,1770772272527,-500.0,0.00044356,120]
[405087710,1770772272537,-500.0,0.00044356,120]
[405087711,1770772272547,-828.95,0.00044356,120]
[405087712,1770772272556,-500.0,0.00044356,120]
[405087713,1770772272565,-500.0,0.00044356,120]
[405087714,1770772272574,-828.95,0.00044356,120]
[405087715,1770772272584,-500.0,0.00044356,120]
[405087716,1770772272593,-239.1550688,0.00044356,120]
[405087717,1770772272603,-828.95,0.00044356,120]
[405087718,1770772272612,-500.0,0.00044356,120]
[405087719,1770772272622,-828.95,0.00044356,120]
[405087720,1770772272631,-500.0,0.00044356,120]
[405087721,1770772272641,-828.95,0.00044356,120]
[405087722,1770772272653,-500.0,0.00044356,120]
[405087723,1770772272662,-500.0,0.00044356,120]
[405087724,1770772272671,-500.0,0.00044356,120]
[405087725,1770772272690,-828.95,0.00044356,120]
[405087726,1770772272701,-500.0,0.00044356,120]
[405087727,1770772272711,-500.0,0.00044356,120]
[405087728,1770772272721,-584.17308081,0.00044356,120]
[405087729,1770772272732,-828.95,0.00044356,120]
[405087730,1770772272741,-552.00430244,0.00044356,120]
[405087731,1770772272751,-585.34894523,0.00044356,120]
[405087732,1770772272761,-828.95,0.00044356,120]
[405087733,1770772272771,-828.95,0.00044356,120]
[405087734,1770772272780,-828.95,0.00044356,120]
[405087735,1770772272790,-500.0,0.00044356,120]
[405087736,1770772272800,-829.12469916,0.00044356,120]
[405087737,1770772272810,-500.0,0.00044356,120]
[405087738,1770772272820,-482.44039723,0.00044356,2]
[405087739,1770772272830,-500.0,0.00044356,120]
[405087740,1770772272841,-500.0,0.00044356,120]
[405087741,1770772272851,-500.0,0.00044356,120]
[405087742,1770772272860,-500.0,0.00044356,120]
[405087743,1770772272870,-500.0,0.00044356,120]
[405087744,1770772272880,-500.0,0.00044356,120]
[405087745,1770772272889,-500.0,0.00044356,120]
[405087746,1770772272902,-500.0,0.00044356,120]
[405087747,1770772272912,-500.0,0.00044356,120]
[405087748,1770772272922,-500.0,0.00044356,120]
[405087749,1770772272932,-500.0,0.00044356,120]
[405087750,1770772272942,-500.0,0.00044356,120]
[405087751,1770772272951,-500.0,0.00044356,120]
[405087752,1770772272961,-500.0,0.00044356,120]
[405087753,1770772272971,-500.0,0.00044356,120]
[405087754,1770772272981,-531.85246136,0.00044356,120]
[405087755,1770772272991,-500.0,0.00044356,120]
[405087756,1770772273000,-500.0,0.00044356,120]
[405087757,1770772273011,-500.0,0.00044356,120]
[405087758,1770772273020,-500.0,0.00044356,120]
[405087759,1770772273030,-500.0,0.00044356,120]
[405087760,1770772273039,-500.0,0.00044356,120]
[405087761,1770772273048,-500.0,0.00044356,120]
[405087762,1770772273057,-500.0,0.00044356,120]
[405087763,1770772273067,-500.0,0.00044356,120]
[405087764,1770772273076,-500.0,0.00044356,120]
[405087765,1770772273085,-500.0,0.00044356,120]
[405087766,1770772273094,-500.0,0.00044356,120]
[405087767,1770772273104,-507.87872851,0.00044356,120]
[405087768,1770772273113,-500.0,0.00044356,120]
[405087769,1770772273123,-500.0,0.00044356,120]
[405087770,1770772273131,-565.85625261,0.00044356,120]
[405087771,1770772273140,-500.0,0.00044356,120]
[405087772,1770772273150,-500.0,0.00044356,120]
[405087773,1770772273159,-500.0,0.00044356,120]
[405087774,1770772273168,-500.0,0.00044356,120]
[405087775,1770772273177,-500.0,0.00044356,120]
[405087776,1770772273187,-454.15201269,0.00044356,120]
[405087777,1770772273196,-500.0,0.00044356,120]
[405087778,1770772273205,-500.0,0.00044356,120]
[405087779,1770772273214,-500.0,0.00044356,120]
[405087780,1770772273224,-500.0,0.00044356,120]
[405087781,1770772273234,-500.0,0.00044356,120]
[405087782,1770772273247,-500.0,0.00044356,120]
[405087783,1770772273256,-500.0,0.00044356,120]
[405087784,1770772273266,-500.0,0.00044356,120]
[405087785,1770772273276,-500.0,0.00044356,120]
[405087786,1770772273286,-356.72386111,0.00044356,120]
[405087787,1770772273295,-500.0,0.00044356,120]
[405087788,1770772273305,-500.0,0.00044356,120]
[405087789,1770772273314,-500.0,0.00044356,120]
[405087790,1770772273324,-511.73138463,0.00044356,120]
[405087791,1770772273333,-500.0,0.00044356,120]
[405087792,1770772273343,-500.0,0.00044356,120]
[405087793,1770772273352,-500.0,0.00044356,120]
[405087794,1770772273361,-500.0,0.00044356,120]
[405087795,1770772273371,-500.0,0.00044356,120]
[405087796,1770772273380,-565.656282,0.00044356,120]
[405087797,1770772273390,-500.0,0.00044356,120]
[405087798,1770772273400,-500.0,0.00044356,120]
[405087799,1770772273409,-500.0,0.00044356,120]
[405087800,1770772273419,-500.0,0.00044356,120]
[405087801,1770772273429,-352.73159907,0.00044356,120]
[405087802,1770772273438,-500.0,0.00044356,120]
[405087803,1770772273447,-500.0,0.00044356,120]
[405087804,1770772273457,-500.0,0.00044356,120]
[405087805,1770772273466,-500.0,0.00044356,120]
[405087806,1770772273476,-218.22598992,0.00044356,120]
[405087807,1770772273486,-532.57218362,0.00044356,120]
[405087808,1770772273496,-239.4,0.00044356,120]
[405087809,1770772273506,-194.65484017,0.00044356,120]
[405087810,1770772273515,-500.0,0.00044356,120]
[405087811,1770772273526,-500.0,0.00044356,30]
[405087812,1770772273536,-500.0,0.00044356,30]
[405087813,1770772273546,-500.0,0.00044356,120]
[405087814,1770772273556,-500.0,0.00044356,120]
[405087815,1770772273566,-459.58767087,0.00044356,120]
[405087816,1770772273577,-225.12864085,0.00044356,30]
[405087817,1770772273587,-593.76194569,0.00044356,120]
[405087818,1770772273597,-557.16534117,0.00044356,120]
[405087819,1770772273607,-500.0,0.00044356,120]
[405087820,1770772273621,-500.0,0.00044356,120]
[405087821,1770772273632,-297.02694735,0.00044356,120]
[405087822,1770772273644,-500.0,0.00044356,120]
[405087823,1770772273656,-500.0,0.00044356,120]
[405087824,1770772273667,-500.0,0.00044356,120]
[405087825,1770772273676,-500.0,0.00044356,120]
[405087826,1770772273686,-500.0,0.00044356,120]
[405087827,1770772273697,-617.10871821,0.00044356,120]
[405087828,1770772273707,-325.31282568,0.00044356,120]
[405087829,1770772273717,-500.0,0.00044356,120]
[405087830,1770772273726,-500.0,0.00044356,120]
[405087831,1770772273736,-500.0,0.00044356,120]
[405087832,1770772273745,-500.0,0.00044356,120]
[405087833,1770772273754,-559.30010213,0.00044356,120]
[405087834,1770772273764,-576.63008942,0.00044356,120]
[405087835,1770772273773,-244.94439577,0.00044356,120]
[405087836,1770772273782,-500.0,0.00044356,120]
[405087837,1770772273792,-606.08531913,0.00044356,120]
[405087838,1770772273801,-242.72762849,0.00044356,120]
[405087839,1770772273810,-493.13919069,0.00044356,120]
[405087840,1770772273819,-500.0,0.00044356,120]
[405087841,1770772273829,-500.0,0.00044356,120]
[405087842,1770772273838,-501.38,0.00044356,120]
[405087843,1770772273847,-500.0,0.00044356,120]
[405087844,1770772273856,-500.0,0.00044356,120]
[405087845,1770772273865,-500.0,0.00044356,120]
[405087846,1770772273875,-501.38,0.00044356,120]
[405087847,1770772273884,-500.0,0.00044356,120]
[405087848,1770772273894,-500.0,0.00044356,120]
[405087849,1770772273903,-275.08604694,0.00044356,120]
[405087850,1770772273912,-501.38,0.00044356,120]
[405087851,1770772273922,-500.0,0.00044356,120]
[405087852,1770772273931,-500.0,0.00044356,120]
[405087853,1770772273941,-501.38,0.00044356,120]
[405087854,1770772273950,-501.38,0.00044356,120]
[405087855,1770772273960,-500.0,0.00044356,120]
[405087856,1770772273969,-501.38,0.00044356,120]
[405087857,1770772273979,-500.0,0.00044356,120]
[405087858,1770772273988,-501.38,0.00044356,120]
[405087859,1770772273998,-500.0,0.00044356,120]
[405087860,1770772274011,-501.38,0.00044356,120]
[405087861,1770772274020,-500.0,0.00044356,120]
[405087862,1770772274031,-500.0,0.00044356,120]
[405087863,1770772274040,-501.38,0.00044356,120]
[405087864,1770772274049,-500.0,0.00044356,120]
[405087865,1770772274059,-500.0,0.00044356,120]
[405087866,1770772274069,-331.44128925,0.00044356,120]
[405087867,1770772274079,-501.38,0.00044356,120]
[405087868,1770772274089,-500.0,0.00044356,120]
[405087869,1770772274098,-500.0,0.00044356,120]
[405087870,1770772274108,-500.0,0.00044356,120]
[405087871,1770772274117,-501.38,0.00044356,120]
[405087872,1770772274127,-500.0,0.00044356,120]
[405087873,1770772274136,-500.0,0.00044356,120]
[405087874,1770772274146,-500.0,0.00044356,120]
[405087875,1770772274155,-164.86659439,0.00044356,120]
[405087876,1770772275495,-2552.455,0.00013853,2]
[405087877,1770772280817,303.80097107,0.00035616,30]
[405087879,1770772357763,173.97692308,0.00035589,30]
[405087883,1770772457233,405.94615384,0.00035589,120]
[405087885,1770772644290,200.0,0.00035616,30]
[405087887,1770772957547,183.73593694,0.00035589,30]
[405087908,1770773305674,775.83044851,0.000345,120]
[405087940,1770773432153,-609.8984744,0.00013193,2]
[405087941,1770773432165,-1242.5215256,0.00013193,2]
[405087942,1770773432175,-3257.75524404,0.00013278,2]
[405087943,1770773432185,-258.48631798,0.00013278,2]
[405087944,1770773432195,-188.27841096,0.00013343,2]
[405087945,1770773432207,-325.72829482,0.00013352,2]
[405087946,1770773432216,-1200.0,0.00013352,2]
[405087947,1770773432227,-150.0,0.00013352,2]
[405087948,1770773432237,-147307.45281684,0.00013353,2]
[405087954,1770773438105,-1028.17508243,0.00013353,2]
[405087955,1770773438118,-1187.75083997,0.00013353,2]
[405087956,1770773438129,-8239.12932782,0.00013353,2]
[405087957,1770773440127,-3342237.49193294,0.00013353,2]
[405087958,1770773440137,-6733.1643,0.00013353,2]
[405087959,1770773440146,-1467.93175563,0.00013378,2]
[405087960,1770773440155,-624.99289788,0.00013378,2]
[405087961,1770773440164,-250.0,0.00013415,2]
[405087962,1770773440174,-374.64251612,0.00013448,2]
[405087963,1770773440183,-240569.62,0.00013453,2]
[405087964,1770773440192,-406.589,0.00013478,2]
[405087965,1770773440201,-186.02524101,0.00013478,2]
[405087966,1770773440211,-186.68,0.000135,2]
[405087967,1770773440220,-280.04,0.000135,2]
[405087968,1770773440229,-1000.0,0.000135,2]
[405087969,1770773440239,-3160.9711,0.00013544,2]
[405087970,1770773440248,-5022.6969,0.00013544,2]
[405087971,1770773440256,-1858.24610051,0.00013544,2]
[405087972,1770773440266,-2500.0,0.00013644,2]
[405087973,1770773440275,-11308.02,0.00013658,2]
[405087974,1770773440284,-272.75509857,0.00013737,2]
[405087975,1770773440293,-1471.66,0.00013742,2]
[405087976,1770773440303,-9999.99,0.00013742,2]
[405087977,1770773440312,-7128.13,0.00013742,2]
[405087978,1770773440322,-4608.89,0.00013742,2]
[405087979,1770773440332,-14021.91,0.00013742,2]
[405087980,1770773440341,-9999.99,0.00013742,2]
[405087981,1770773440351,-999.99,0.00013742,2]
[405087982,1770773440361,-9999.99,0.00013742,2]
[405087983,1770773440371,-349.24,0.00013742,2]
[405087984,1770773440380,-1202.63,0.00013742,2]
[405087985,1770773440389,-9999.99,0.00013743,2]
[405087986,1770773440399,-9999.99,0.00013743,2]
[405087987,1770773440408,-299.99,0.00013743,2]
[405087988,1770773440418,-9999.99,0.00013743,2]
[405087989,1770773440427,-150.99,0.00013743,2]
[405087990,1770773440436,-1222.26,0.00013744,2]
[405087991,1770773440445,-358.39522769,0.00013753,2]
[405087992,1770773440454,-500.0,0.00013853,2]
[405087993,1770773440463,-500.0,0.00013853,2]
[405087994,1770773440473,-500.0,0.00013853,2]
[405087995,1770773440482,-500.0,0.00013853,2]
[405087996,1770773440491,-500.0,0.00013853,2]
[405087997,1770773440500,-500.0,0.00013853,2]
[405087998,1770773440510,-500.0,0.00013853,2]
[405087999,1770773440519,-157.14,0.00013853,2]
[405088000,1770773440529,-500.0,0.00013853,2]
[405088001,1770773440538,-500.0,0.00013853,2]
[405088002,1770773440547,-500.0,0.00013853,2]
[405088003,1770773440556,-500.0,0.00013853,2]
[405088004,1770773440565,-461.38605445,0.00013853,2]
[405088005,1770773440574,-500.0,0.00013853,2]
[405088006,1770773440583,-500.0,0.00013853,2]
[405088007,1770773440592,-500.0,0.00013853,2]
[405088008,1770773440602,-500.0,0.00013853,2]
[405088009,1770773440611,-500.0,0.00013853,2]
[405088010,1770773440620,-500.0,0.00013853,2]
[405088011,1770773440630,-500.0,0.00013853,2]
[405088012,1770773440639,-500.0,0.00013853,2]
[405088013,1770773440649,-500.0,0.00013853,2]
[405088014,1770773440658,-500.0,0.00013853,2]
[405088015,1770773440667,-500.0,0.00013853,2]
[405088016,1770773440676,-500.0,0.00013853,2]
[405088017,1770773440685,-612.34939669,0.00013853,2]
[405088018,1770773440695,-500.0,0.00013853,2]
[405088019,1770773440704,-1467.93175556,0.00013882,2]
[405088020,1770773440714,-166.66,0.00013976,2]
[405088021,1770773440723,-5188.44,0.00014009,2]
[405088022,1770773440732,-1222.26,0.00014018,2]
[405088023,1770773440742,-150.0,0.00014026,2]
[405088024,1770773440752,-1858.24610051,0.00014169,2]
[405088025,1770773440761,-166.66,0.0001427,2]
[405088026,1770773440771,-1222.26,0.00014292,2]
[405088027,1770773440780,-1000.0,0.00014363,2]
[405088028,1770773440790,-33318.2211,0.00014363,2]
[405088029,1770773440806,-1467.93175556,0.00014386,2]
[405088030,1770773440816,-255.0,0.0001446,2]
[405088031,1770773440825,-280.52362488,0.00014512,2]
[405088032,1770773440835,-166.66,0.00014565,2]
[405088033,1770773440844,-1222.26,0.00014565,2]
[405088034,1770773440854,-1680.0,0.00014687,2]
[405088035,1770773440865,-250.0,0.00014716,2]
[405088036,1770773440874,-1858.24610051,0.00014793,2]
[405088037,1770773440885,-1222.26,0.00014839,2]
[405088038,1770773440895,-166.66,0.00014859,2]
[405088039,1770773440904,-1467.93175556,0.00014891,2]
[405088040,1770773440914,-250.0,0.00015,2]
[405088041,1770773440924,-2300.0,0.00015,2]
[405088042,1770773440933,-900.0,0.00015068,2]
[405088043,1770773440943,-1222.26,0.00015113,2]
[405088044,1770773440952,-166.66,0.00015153,2]
[405088045,1770773440961,-500.0,0.00015373,2]
[405088046,1770773440971,-500.0,0.00015373,2]
[405088047,1770773440980,-157.56683688,0.00015373,2]
[405088048,1770773440994,-500.0,0.00015373,2]
[405088049,1770773441007,-1222.26,0.00015387,2]
[405088050,1770773441018,-1467.93175556,0.00015395,2]
[405088051,1770773441029,-10000.0,0.00015401,2]
[405088052,1770773441039,-1858.24610051,0.00015418,2]
[405088053,1770773441050,-166.66,0.00015447,2]
[405088054,1770773441060,-1222.33176766,0.00015661,2]
[405088055,1770773441071,-433.0,0.00015661,2]
[405088056,1770773441082,-1467.93175556,0.00015899,2]
[405088057,1770773441092,-1000.0,0.00015921,2]
[405088058,1770773441101,-1000.0,0.00015921,2]
[405088059,1770773441111,-1000.0,0.00015921,2]
[405088060,1770773441120,-1858.24610051,0.00016042,2]
[405088061,1770773441130,-1563.0,0.00016155,2]
[405088062,1770773441140,-5000.0083538,0.000162,5]
[405088063,1770773441149,-1467.93175556,0.00016403,2]
[405088064,1770773441159,-900.0,0.00016438,2]
[405088065,1770773441169,-1014.54604241,0.00016468,2]
[405088066,1770773441178,-1500.0,0.00016468,2]
[405088067,1770773441187,-1500.0,0.00016468,2]
[405088068,1770773441200,-1858.24610051,0.00016667,2]
[405088069,1770773441209,-1467.93175556,0.00016908,2]
[405088070,1770773441219,-736.0,0.00016957,2]
[405088071,1770773441230,-613306.77256977,0.00017,2]
[405088072,1770773441240,-1509.74540724,0.00017016,2]
[405088073,1770773441250,-1927.28043664,0.00017016,2]
[405088074,1770773441260,-1858.24610051,0.00017291,2]
[405088075,1770773441270,-1467.93175556,0.00017412,2]
[405088076,1770773441280,-250.0,0.00017432,2]
[405088077,1770773441289,-1021.51990659,0.00017677,2]
[405088078,1770773441299,-954.69808866,0.00017677,2]
[405088079,1770773441308,-620.33388397,0.00017808,2]
[405088080,1770773441318,-620.33388397,0.00017808,2]
[405088081,1770773441328,-620.33388397,0.00017808,2]
[405088082,1770773441337,-620.33388397,0.00017808,2]
[405088083,1770773441347,-620.33388397,0.00017808,2]
[405088084,1770773441356,-620.33388397,0.00017808,2]
[405088085,1770773441366,-620.33388397,0.00017808,2]
[405088086,1770773441375,-620.33388397,0.00017808,2]
[405088087,1770773441385,-620.33388397,0.00017808,2]
[405088088,1770773441397,-620.33388397,0.00017808,2]
[405088089,1770773441406,-620.33388397,0.00017808,2]
[405088090,1770773441416,-620.33388397,0.00017808,2]
[405088091,1770773441425,-620.33388397,0.00017808,2]
[405088092,1770773441436,-620.33388397,0.00017808,2]
[405088093,1770773441445,-620.33388397,0.00017808,2]
[405088094,1770773441455,-620.33388397,0.00017808,2]
[405088095,1770773441465,-620.33388397,0.00017808,2]
[405088096,1770773441474,-620.33388397,0.00017808,2]
[405088097,1770773441483,-620.33388397,0.00017808,2]
[405088098,1770773441492,-620.33388397,0.00017808,2]
[405088099,1770773441502,-620.33388397,0.00017808,2]
[405088100,1770773441511,-620.33388397,0.00017808,2]
[405088101,1770773441521,-620.33388397,0.00017808,2]
[405088102,1770773441530,-482.42380394,0.00017836,2]
[405088103,1770773441540,-228.68644798,0.0001786,2]
[405088104,1770773441550,-1467.93175556,0.00017916,2]
[405088105,1770773441560,-1858.24610051,0.00017916,2]
[405088106,1770773441569,-3797769.48161099,0.00018,2]
[405088107,1770773441587,-446.65040012,0.00018,2]
[405088108,1770773441608,-801.04957216,0.00018,2]
[405088133,1770773446196,-500.0,0.00013352,2]
[405088134,1770773446206,-330.74661102,0.00013352,2]
[405088135,1770773446219,-17.47403847,0.00013352,2]
[405088136,1770773446233,-3455.35911246,0.00016263,2]
[405088161,1770773532723,707.4787386,0.00035616,120]
[405088162,1770773535099,174.0,0.00035439,30]
[405088163,1770773536309,277.0,0.00035616,30]
[405088164,1770773577233,200.0,0.00035616,30]
[405088166,1770773614142,246.41,0.00035616,30]
[405088167,1770773645243,277.36,0.00035616,30]
[405088170,1770773774896,166.55,0.00035616,120]
[405088171,1770773782515,389.7,0.00035616,120]
[405088172,1770773930982,8330.78,0.00035616,30]
[405088174,1770774092302,499.144,0.00035616,42]
[405088175,1770774092341,188.76669213,0.00035616,42]
[405088182,1770774221702,150.18,0.0001,2]
[405088188,1770774386301,151.0,0.0003561,31]
[405088191,1770774407235,785.067,0.00035616,30]
[405088206,1770774457330,318.561309,0.0003561,31]
[405088207,1770774458745,318.561309,0.0003561,31]
[405088208,1770774460180,318.561309,0.0003561,31]
[405088209,1770774461609,318.561309,0.0003561,31]
[405088210,1770774501365,1015.99,0.00012531,2]
[405088211,1770774505255,153.276429,0.0003561,31]
[405088251,1770774608147,151.0,0.000345,31]
[405088257,1770774632246,-208.87653064,0.00012803,2]
[405088258,1770774632257,-208.87653063,0.00012878,2]
[405088259,1770774632266,-210.0,0.00012902,2]
[405088260,1770774632277,-1200.0,0.00012902,2]
[405088261,1770774632293,-250.0,0.00012903,2]
[405088262,1770774632303,-255.56793299,0.00012903,2]
[405088263,1770774632315,-2535.48197541,0.00012903,2]
[405088280,1770774640727,-14177.03368216,0.00012903,2]
[405088281,1770774640737,-182.71114273,0.00012903,2]
[405088282,1770774640747,-182.71114273,0.00012903,2]
[405088283,1770774640756,-374.64251612,0.00012917,2]
[405088284,1770774640770,-932.18,0.00012926,2]
[405088285,1770774640779,-208.87653063,0.00012952,2]
[405088286,1770774640788,-150.0,0.00012999,2]
[405088287,1770774640798,-259234.5565,0.00013,2]
[405088288,1770774640807,-3164.9129,0.00013053,2]
[405088289,1770774640816,-5099.0263,0.00013053,2]
[405088290,1770774640826,-2500.0,0.00013053,2]
[405088291,1770774640836,-277.824,0.00013053,2]
[405088292,1770774640845,-349.38,0.00013153,2]
[405088293,1770774640855,-9999.99,0.00013153,2]
[405088294,1770774640865,-187.06,0.000132,2]
[405088295,1770774640874,-9999.99,0.00013252,2]
[405088296,1770774640884,-9999.99,0.00013252,2]
[405088297,1770774640894,-299.99,0.00013252,2]
[405088298,1770774640904,-1472.25,0.00013252,2]
[405088299,1770774640914,-9999.99,0.00013252,2]
[405088300,1770774640924,-9999.99,0.00013252,2]
[405088301,1770774640933,-9999.99,0.00013252,2]
[405088302,1770774640942,-4615.42,0.00013252,2]
[405088303,1770774640951,-7131.02,0.00013252,2]
[405088304,1770774640961,-150.99,0.00013252,2]
[405088306,1770774640970,-14027.6,0.00013252,2]
[405088307,1770774640980,-999.99,0.00013252,2]
[405088308,1770774640989,-500.0,0.00013252,2]
[405088309,1770774640999,-33323.5159,0.00013253,2]
[405088310,1770774641009,-217.61561231,0.00013352,2]
[405088311,1770774641019,-1223.54,0.00013352,2]
[405088312,1770774641028,-1000.0,0.00013353,2]
[405088313,1770774641038,-150.0,0.00013424,2]
[405088314,1770774641048,-16968.0835905,0.00013458,2]
[405088315,1770774641057,-1223.54,0.00013625,2]
[405088316,1770774641065,-511.50495534,0.00013698,2]
[405088317,1770774641074,-514.92955888,0.00013698,2]
[405088318,1770774641083,-500.0,0.00013698,2]
[405088319,1770774641093,-500.0,0.00013698,2]
[405088320,1770774641101,-500.0,0.00013698,2]
[405088321,1770774641110,-500.0,0.00013698,2]
[405088322,1770774641119,-474.03942024,0.00013698,2]
[405088323,1770774641128,-500.0,0.00013698,2]
[405088324,1770774641137,-500.0,0.00013698,2]
[405088325,1770774641146,-500.0,0.00013698,2]
[405088326,1770774641155,-500.0,0.00013698,2]
[405088327,1770774641164,-500.0,0.00013698,2]
[405088328,1770774641174,-500.0,0.00013698,2]
[405088329,1770774641183,-500.0,0.00013698,2]
[405088330,1770774641193,-500.0,0.00013698,2]
[405088331,1770774641203,-500.0,0.00013698,2]
[405088332,1770774641212,-500.0,0.00013698,2]
[405088333,1770774641221,-500.0,0.00013698,2]
[405088334,1770774641233,-500.0,0.00013698,2]
[405088335,1770774641244,-500.0,0.00013698,2]
[405088336,1770774641253,-500.0,0.00013698,2]
[405088337,1770774641263,-607.70043324,0.00013698,2]
[405088338,1770774641272,-500.0,0.00013698,2]
[405088339,1770774641281,-500.0,0.00013698,2]
[405088340,1770774641290,-500.0,0.00013698,2]
[405088341,1770774641299,-500.0,0.00013698,2]
[405088342,1770774641308,-586.00467181,0.00013698,2]
[405088343,1770774641318,-500.0,0.00013698,2]
[405088344,1770774641328,-500.0,0.00013698,2]
[405088345,1770774641338,-500.0,0.00013698,2]
[405088346,1770774641347,-321.35543779,0.00013698,2]
[405088347,1770774641356,-4406.24,0.000137,2]
[405088348,1770774641365,-4406.24,0.000137,2]
[405088349,1770774641374,-4406.24,0.00013809,2]
[405088350,1770774641385,-3240.0,0.00013819,2]
[405088351,1770774641396,-1223.54,0.00013899,2]
[405088352,1770774641405,-150.0,0.00014012,2]
[405088353,1770774641414,-16968.0835905,0.00014013,2]
[405088354,1770774641423,-500.0,0.00014023,2]
[405088355,1770774641433,-255.0,0.00014104,2]
[405088356,1770774641442,-1223.54,0.00014173,2]
[405088357,1770774641452,-1680.0,0.00014192,2]
[405088358,1770774641463,-280.52362488,0.00014192,2]
[405088359,1770774641473,-250.0,0.00014192,2]
[405088360,1770774641482,-1000.0,0.0001428,2]
[405088361,1770774641491,-1223.54,0.00014447,2]
[405088362,1770774641501,-150.95915695,0.00014551,2]
[405088363,1770774641510,-16968.0835905,0.00014569,2]
[405088364,1770774641520,-1223.54,0.00014721,2]
[405088365,1770774641530,-277.35679052,0.00014856,2]
[405088366,1770774641540,-1223.54,0.00014995,2]
[405088367,1770774641549,-16968.0835905,0.00015124,2]
[405088368,1770774641558,-1223.57167531,0.00015269,2]
[405088369,1770774641568,-433.0,0.000153,2]
[405088370,1770774641577,-500.0,0.00015373,2]
[405088371,1770774641587,-500.0,0.00015373,2]
[405088372,1770774641596,-500.0,0.00015373,2]
[405088373,1770774641605,-157.56683688,0.00015373,2]
[405088374,1770774641614,-287.61899177,0.00015404,2]